[Event "*** Titled Tuesday Blitz"]
[Site "Chess.com"]
[Date "2020.04.14"]
[Round "2"]
[White "wonderfultime"]
[Black "saikrishnaReturns"]
[Result "1-0"]
[WhiteElo "2945"]
[BlackElo "2607"]
[TimeControl "180+1"]
[EndTime "10:17:41 PDT"]
[Termination "wonderfultime won by checkmate"]

1. d4 {[%clk 0:03:00.9]} 1... Nf6 {[%clk 0:02:58.2]} 2. Nf3 {[%clk 0:03:01.2]}
2... g6 {[%clk 0:02:58.2]} 3. Bg5 {[%clk 0:03:00.5]} 3... Bg7 {[%clk 0:02:57.6]}
4. Nbd2 {[%clk 0:03:01.1]} 4... h6 {[%clk 0:02:57.6]} 5. Bh4 {[%clk 0:03:00.7]}
5... g5 {[%clk 0:02:57.7]} 6. Bg3 {[%clk 0:03:00.9]} 6... Nh5 {[%clk 0:02:58]}
7. e3 {[%clk 0:03:00.2]} 7... c5 {[%clk 0:02:54.8]} 8. c3 {[%clk 0:02:59.7]}
8... Nc6 {[%clk 0:02:51]} 9. dxc5 {[%clk 0:02:57.7]} 9... a5 {[%clk 0:02:32.5]}
10. Nc4 {[%clk 0:02:53.3]} 10... Nxg3 {[%clk 0:02:30.1]} 11. hxg3 {[%clk
0:02:54.2]} 11... O-O {[%clk 0:02:19.6]} 12. Bd3 {[%clk 0:02:49.5]} 12... d5
{[%clk 0:02:14.5]} 13. Nb6 {[%clk 0:02:30]} 13... Bg4 {[%clk 0:01:50.6]} 14.
Nxa8 {[%clk 0:02:26.1]} 14... Qxa8 {[%clk 0:01:51.5]} 15. Qa4 {[%clk 0:02:18.3]}
15... Bxf3 {[%clk 0:01:34.6]} 16. gxf3 {[%clk 0:02:19.2]} 16... Qa7 {[%clk
0:01:35]} 17. Qb5 {[%clk 0:02:14.2]} 17... Ne5 {[%clk 0:01:32]} 18. Be2 {[%clk
0:02:10.2]} 18... Rc8 {[%clk 0:01:31.4]} 19. f4 {[%clk 0:02:04.6]} 19... gxf4
{[%clk 0:01:27.8]} 20. gxf4 {[%clk 0:02:05.5]} 20... Ng6 {[%clk 0:01:27.9]} 21.
Rd1 {[%clk 0:01:51.3]} 21... e6 {[%clk 0:01:16.8]} 22. f5 {[%clk 0:01:50.9]}
22... Ne5 {[%clk 0:01:13.1]} 23. Rg1 {[%clk 0:01:45.6]} 23... Kf8 {[%clk
0:01:11.4]} 24. fxe6 {[%clk 0:01:42.7]} 24... Rxc5 {[%clk 0:01:02.7]} 25. e7+
{[%clk 0:01:42.7]} 25... Kxe7 {[%clk 0:01:01.9]} 26. Qa4 {[%clk 0:01:35.5]}
26... Bf6 {[%clk 0:00:54.9]} 27. Rg8 {[%clk 0:01:33]} 27... Nc6 {[%clk
0:00:49.5]} 28. Qf4 {[%clk 0:01:31]} 28... b5 {[%clk 0:00:39]} 29. Qxh6 {[%clk
0:01:26.4]} 29... Ne5 {[%clk 0:00:29.3]} 30. Qf8+ {[%clk 0:00:58.9]} 30... Ke6
{[%clk 0:00:26.9]} 31. Qe8+ {[%clk 0:00:58.1]} 31... Be7 {[%clk 0:00:25.2]} 32.
Qa8 {[%clk 0:00:57.8]} 32... Qc7 {[%clk 0:00:23.2]} 33. Qa6+ {[%clk 0:00:46]}
33... Qc6 {[%clk 0:00:21.5]} 34. Qxc6+ {[%clk 0:00:44.7]} 34... Nxc6 {[%clk
0:00:22.4]} 35. Rc8 {[%clk 0:00:40.1]} 35... b4 {[%clk 0:00:21.2]} 36. c4 {[%clk
0:00:36.3]} 36... dxc4 {[%clk 0:00:20.3]} 37. Rc1 {[%clk 0:00:24.8]} 37... c3
{[%clk 0:00:19.8]} 38. bxc3 {[%clk 0:00:25.6]} 38... bxc3 {[%clk 0:00:20.7]} 39.
Bf3 {[%clk 0:00:22.1]} 39... Bf6 {[%clk 0:00:20.9]} 40. Rxc6+ {[%clk 0:00:22]}
40... Rxc6 {[%clk 0:00:21]} 41. Bxc6 {[%clk 0:00:22.9]} 41... Kd6 {[%clk
0:00:21.9]} 42. Ba4 {[%clk 0:00:22.5]} 42... Kc5 {[%clk 0:00:22.8]} 43. Bb3
{[%clk 0:00:22.9]} 43... Kb4 {[%clk 0:00:23.7]} 44. Bxf7 {[%clk 0:00:23.5]}
44... Ka3 {[%clk 0:00:23.5]} 45. Rc2 {[%clk 0:00:24.1]} 45... a4 {[%clk
0:00:23.3]} 46. Ke2 {[%clk 0:00:23.9]} 46... Be7 {[%clk 0:00:23.6]} 47. Rxc3+
{[%clk 0:00:23.6]} 47... Kb2 {[%clk 0:00:23.9]} 48. Rc7 {[%clk 0:00:23.9]} 48...
Ka1 {[%clk 0:00:24.8]} 49. Rxe7 {[%clk 0:00:23.8]} 49... a3 {[%clk 0:00:25.5]}
50. Ra7 {[%clk 0:00:21.9]} 50... Kb2 {[%clk 0:00:26.4]} 51. Rxa3 {[%clk
0:00:22.6]} 51... Kxa3 {[%clk 0:00:26.5]} 52. e4 {[%clk 0:00:23]} 52... Kb2
{[%clk 0:00:27.4]} 53. e5 {[%clk 0:00:23.5]} 53... Ka3 {[%clk 0:00:28.3]} 54. e6
{[%clk 0:00:24.4]} 54... Kb4 {[%clk 0:00:29.2]} 55. e7 {[%clk 0:00:25.3]} 55...
Ka3 {[%clk 0:00:30]} 56. e8=Q {[%clk 0:00:25.5]} 56... Kb2 {[%clk 0:00:30.9]}
57. Qe5+ {[%clk 0:00:25]} 57... Kb1 {[%clk 0:00:31.3]} 58. Bg6+ {[%clk
0:00:24.8]} 58... Kc1 {[%clk 0:00:32.2]} 59. Qc3# {[%clk 0:00:24.3]} 1-0

[Event "*** Titled Tuesday Blitz"]
[Site "Chess.com"]
[Date "2020.04.14"]
[Round "2"]
[White "SahaNeelash"]
[Black "vovkcoach"]
[Result "1-0"]
[WhiteElo "2558"]
[BlackElo "2756"]
[TimeControl "180+1"]
[EndTime "10:17:41 PDT"]
[Termination "SahaNeelash won by resignation"]

1. d4 {[%clk 0:03:00.9]} 1... Nf6 {[%clk 0:02:59.9]} 2. Bg5 {[%clk 0:03:00.3]}
2... e6 {[%clk 0:02:57.6]} 3. Nd2 {[%clk 0:02:59.4]} 3... h6 {[%clk 0:02:56.3]}
4. Bh4 {[%clk 0:02:59.3]} 4... d5 {[%clk 0:02:56.3]} 5. e3 {[%clk 0:02:57.7]}
5... c5 {[%clk 0:02:53.7]} 6. c3 {[%clk 0:02:57.3]} 6... Nc6 {[%clk 0:02:53.9]}
7. Ngf3 {[%clk 0:02:51.6]} 7... Be7 {[%clk 0:02:52.5]} 8. Ne5 {[%clk 0:02:45.8]}
8... Nxe5 {[%clk 0:02:51.6]} 9. dxe5 {[%clk 0:02:45.7]} 9... Nd7 {[%clk
0:02:52.1]} 10. Bxe7 {[%clk 0:02:39.5]} 10... Qxe7 {[%clk 0:02:52.9]} 11. f4
{[%clk 0:02:36.4]} 11... b6 {[%clk 0:02:52.8]} 12. Bd3 {[%clk 0:02:32.7]} 12...
Bb7 {[%clk 0:02:51.8]} 13. O-O {[%clk 0:02:31.9]} 13... O-O {[%clk 0:02:51]} 14.
Qe2 {[%clk 0:02:12.9]} 14... f6 {[%clk 0:02:43.5]} 15. exf6 {[%clk 0:02:09.9]}
15... Rxf6 {[%clk 0:02:44.4]} 16. e4 {[%clk 0:02:08.7]} 16... Raf8 {[%clk
0:02:30.3]} 17. Qe3 {[%clk 0:01:52]} 17... e5 {[%clk 0:02:11.8]} 18. exd5 {[%clk
0:01:47.2]} 18... Bxd5 {[%clk 0:02:12.5]} 19. Rae1 {[%clk 0:01:41.9]} 19... Bxa2
{[%clk 0:01:51.8]} 20. b3 {[%clk 0:01:33.6]} 20... e4 {[%clk 0:01:23.1]} 21.
Bc4+ {[%clk 0:01:11.4]} 21... Kh8 {[%clk 0:01:22.1]} 22. Ra1 {[%clk 0:01:11.5]}
22... Bxb3 {[%clk 0:01:14.3]} 23. Bxb3 {[%clk 0:01:10.1]} 23... c4 {[%clk
0:01:13.8]} 24. Bxc4 {[%clk 0:01:04]} 24... Nc5 {[%clk 0:01:13.7]} 25. Bd5
{[%clk 0:01:02.8]} 25... Qd6 {[%clk 0:01:01.2]} 26. c4 {[%clk 0:00:56.4]} 26...
Rxf4 {[%clk 0:01:01]} 27. Rxf4 {[%clk 0:00:53.9]} 27... Qxf4 {[%clk 0:01:01]}
28. Qxf4 {[%clk 0:00:47.3]} 28... Rxf4 {[%clk 0:01:01.7]} 29. Rxa7 {[%clk
0:00:46.9]} 29... e3 {[%clk 0:01:01.7]} 30. Nf3 {[%clk 0:00:46.6]} 30... g5
{[%clk 0:00:56.3]} 31. Re7 {[%clk 0:00:41.3]} 31... Rf6 {[%clk 0:00:46.2]} 32.
Rxe3 {[%clk 0:00:38.4]} 32... Kg7 {[%clk 0:00:47.1]} 33. Nd4 {[%clk 0:00:32]}
33... h5 {[%clk 0:00:43.3]} 34. Ne6+ {[%clk 0:00:31.6]} 34... Nxe6 {[%clk
0:00:42.9]} 35. Rxe6 {[%clk 0:00:32.5]} 35... Rf4 {[%clk 0:00:42.6]} 36. g3
{[%clk 0:00:31.5]} 36... Rd4 {[%clk 0:00:40.6]} 37. Rxb6 {[%clk 0:00:31.3]}
37... Rd1+ {[%clk 0:00:40.7]} 38. Kg2 {[%clk 0:00:31.1]} 38... Rd2+ {[%clk
0:00:41.2]} 39. Kh3 {[%clk 0:00:29.5]} 39... Rc2 {[%clk 0:00:38.3]} 40. Rc6
{[%clk 0:00:26.3]} 40... g4+ {[%clk 0:00:32.6]} 41. Kh4 {[%clk 0:00:25.8]} 41...
Rxh2+ {[%clk 0:00:33.5]} 42. Kg5 {[%clk 0:00:26.1]} 42... Rh3 {[%clk 0:00:34.4]}
43. Rc7+ {[%clk 0:00:25.5]} 43... Kf8 {[%clk 0:00:34.1]} 44. Kf6 {[%clk
0:00:25.5]} 44... Ke8 {[%clk 0:00:34.2]} 45. Be6 {[%clk 0:00:25.3]} 1-0

[Event "*** Titled Tuesday Blitz"]
[Site "Chess.com"]
[Date "2020.04.14"]
[Round "2"]
[White "TheFireChess"]
[Black "ssrija97"]
[Result "1-0"]
[WhiteElo "2486"]
[BlackElo "2213"]
[TimeControl "180+1"]
[EndTime "10:17:41 PDT"]
[Termination "TheFireChess won on time"]

1. e4 {[%clk 0:03:00.9]} 1... e5 {[%clk 0:02:58.2]} 2. Nf3 {[%clk 0:03:00.6]}
2... Nc6 {[%clk 0:02:56.1]} 3. Bc4 {[%clk 0:03:01]} 3... Nf6 {[%clk 0:02:55.6]}
4. d3 {[%clk 0:03:01.1]} 4... Bc5 {[%clk 0:02:51.5]} 5. c3 {[%clk 0:03:01.1]}
5... a6 {[%clk 0:02:50.7]} 6. Nbd2 {[%clk 0:02:59.3]} 6... Ba7 {[%clk 0:02:50]}
7. Bb3 {[%clk 0:02:57.3]} 7... d6 {[%clk 0:02:49.9]} 8. h3 {[%clk 0:02:55.6]}
8... Ne7 {[%clk 0:02:49.6]} 9. Nf1 {[%clk 0:02:54.3]} 9... Ng6 {[%clk 0:02:30]}
10. Be3 {[%clk 0:02:52.2]} 10... Nh5 {[%clk 0:02:13.6]} 11. Bxf7+ {[%clk
0:02:11.7]} 11... Kxf7 {[%clk 0:02:01.6]} 12. Ng5+ {[%clk 0:02:10.1]} 12... Ke8
{[%clk 0:01:49.4]} 13. Qxh5 {[%clk 0:02:08.6]} 13... Qf6 {[%clk 0:01:39.8]} 14.
O-O-O {[%clk 0:01:49.2]} 14... h6 {[%clk 0:01:35.9]} 15. Nf3 {[%clk 0:01:38.2]}
15... Be6 {[%clk 0:01:29.5]} 16. Bxa7 {[%clk 0:01:26.8]} 16... Rxa7 {[%clk
0:01:25.5]} 17. Ne3 {[%clk 0:01:27.2]} 17... Kd8 {[%clk 0:01:17.4]} 18. Ng4
{[%clk 0:00:48.9]} 18... Qf7 {[%clk 0:01:15.2]} 19. a3 {[%clk 0:00:41.7]} 19...
b5 {[%clk 0:00:52.4]} 20. d4 {[%clk 0:00:39.7]} 20... exd4 {[%clk 0:00:50.8]}
21. Rxd4 {[%clk 0:00:33.9]} 21... Kc8 {[%clk 0:00:31.6]} 22. Rhd1 {[%clk
0:00:23.1]} 22... Nf4 {[%clk 0:00:30.2]} 23. Qxf7 {[%clk 0:00:20.6]} 23... Bxf7
{[%clk 0:00:27]} 24. g3 {[%clk 0:00:19.5]} 24... Ne2+ {[%clk 0:00:15.3]} 25. Kd2
{[%clk 0:00:20]} 25... Nxd4 {[%clk 0:00:15.8]} 26. Nxd4 {[%clk 0:00:20.6]} 26...
g6 {[%clk 0:00:12.7]} 27. Ne3 {[%clk 0:00:17.8]} 27... c5 {[%clk 0:00:12.3]} 28.
Ne2 {[%clk 0:00:15.3]} 28... Bb3 {[%clk 0:00:11.5]} 29. Re1 {[%clk 0:00:14.9]}
29... Re7 {[%clk 0:00:10.7]} 30. f3 {[%clk 0:00:14.7]} 30... Rf8 {[%clk
0:00:03.3]} 31. Nf4 {[%clk 0:00:14.5]} 31... g5 {[%clk 0:00:01.8]} 32. Nfd5
{[%clk 0:00:14.3]} 1-0

[Event "*** Titled Tuesday Blitz"]
[Site "Chess.com"]
[Date "2020.04.14"]
[Round "2"]
[White "thedjoker98"]
[Black "gmelviro"]
[Result "1-0"]
[WhiteElo "2451"]
[BlackElo "2188"]
[TimeControl "180+1"]
[EndTime "10:17:41 PDT"]
[Termination "thedjoker98 won by resignation"]

1. d4 {[%clk 0:03:00.9]} 1... f5 {[%clk 0:02:59.4]} 2. g3 {[%clk 0:02:59.2]}
2... g6 {[%clk 0:02:59.4]} 3. Bg2 {[%clk 0:02:59.5]} 3... Bg7 {[%clk 0:03:00.3]}
4. Nf3 {[%clk 0:02:55.7]} 4... Nf6 {[%clk 0:03:00.3]} 5. O-O {[%clk 0:02:56.2]}
5... O-O {[%clk 0:02:54.8]} 6. c4 {[%clk 0:02:54.6]} 6... d6 {[%clk 0:02:54.3]}
7. Nc3 {[%clk 0:02:51.3]} 7... Nc6 {[%clk 0:02:54.2]} 8. d5 {[%clk 0:02:50.6]}
8... Ne5 {[%clk 0:02:54.1]} 9. Nxe5 {[%clk 0:02:50.4]} 9... dxe5 {[%clk
0:02:53.9]} 10. c5 {[%clk 0:02:49]} 10... Kh8 {[%clk 0:02:50.5]} 11. Qb3 {[%clk
0:02:47.3]} 11... e4 {[%clk 0:02:50.1]} 12. Rd1 {[%clk 0:02:42.7]} 12... e5
{[%clk 0:02:48.1]} 13. dxe6 {[%clk 0:02:41.4]} 13... Qe7 {[%clk 0:02:47.6]} 14.
Bf4 {[%clk 0:02:24.2]} 14... Nh5 {[%clk 0:02:39.2]} 15. Nd5 {[%clk 0:02:02.7]}
15... Qxe6 {[%clk 0:01:41.8]} 16. Bxc7 {[%clk 0:01:38.5]} 16... Nf6 {[%clk
0:01:26.2]} 17. Bd6 {[%clk 0:01:19.9]} 17... Rf7 {[%clk 0:01:19.1]} 18. Nc7
{[%clk 0:01:13.6]} 18... Rxc7 {[%clk 0:01:10.8]} 19. Bxc7 {[%clk 0:01:10.6]}
19... Qxb3 {[%clk 0:00:52.8]} 20. axb3 {[%clk 0:01:11.5]} 20... Be6 {[%clk
0:00:53.7]} 21. Rd8+ {[%clk 0:01:08]} 21... Rxd8 {[%clk 0:00:52.6]} 22. Bxd8
{[%clk 0:01:08.9]} 22... a6 {[%clk 0:00:52]} 23. c6 {[%clk 0:00:54.4]} 23...
bxc6 {[%clk 0:00:49.5]} 24. Rxa6 {[%clk 0:00:53.4]} 24... Bd5 {[%clk 0:00:48.4]}
25. f3 {[%clk 0:00:40.2]} 25... h5 {[%clk 0:00:46.8]} 26. fxe4 {[%clk
0:00:39.1]} 26... Nxe4 {[%clk 0:00:46.6]} 27. Bxe4 {[%clk 0:00:29.2]} 27... Bd4+
{[%clk 0:00:45.6]} 28. Kf1 {[%clk 0:00:28]} 28... Bxe4 {[%clk 0:00:45.7]} 29.
Bg5 {[%clk 0:00:20.5]} 29... Bxb2 {[%clk 0:00:42.1]} 30. Be3 {[%clk 0:00:20.3]}
30... Be5 {[%clk 0:00:37.2]} 31. b4 {[%clk 0:00:19.8]} 31... Kg7 {[%clk
0:00:34.4]} 32. Ra7+ {[%clk 0:00:19.5]} 32... Kf6 {[%clk 0:00:33.9]} 33. Kf2
{[%clk 0:00:19.9]} 33... g5 {[%clk 0:00:33.4]} 34. Bc5 {[%clk 0:00:19.8]} 34...
h4 {[%clk 0:00:32.3]} 35. Rd7 {[%clk 0:00:19]} 35... hxg3+ {[%clk 0:00:31.5]}
36. hxg3 {[%clk 0:00:19.9]} 36... f4 {[%clk 0:00:30.7]} 37. gxf4 {[%clk
0:00:19.4]} 37... Bxf4 {[%clk 0:00:30.1]} 38. Rd1 {[%clk 0:00:19.2]} 38... Bd5
{[%clk 0:00:29.5]} 39. e3 {[%clk 0:00:18.5]} 39... Be5 {[%clk 0:00:29]} 40. Bd4
{[%clk 0:00:18.9]} 40... Kf5 {[%clk 0:00:28.4]} 41. Bxe5 {[%clk 0:00:18.9]}
41... Kxe5 {[%clk 0:00:28.9]} 42. Rd4 {[%clk 0:00:19.8]} 42... Kf5 {[%clk
0:00:28.6]} 43. b5 {[%clk 0:00:19.2]} 43... g4 {[%clk 0:00:27.8]} 44. b6 {[%clk
0:00:19.1]} 44... Bf3 {[%clk 0:00:26.4]} 45. b7 {[%clk 0:00:18.7]} 45... c5
{[%clk 0:00:26.7]} 46. Rf4+ {[%clk 0:00:18.8]} 46... Ke5 {[%clk 0:00:26]} 47.
b8=Q+ {[%clk 0:00:19.7]} 1-0

[Event "*** Titled Tuesday Blitz"]
[Site "Chess.com"]
[Date "2020.04.14"]
[Round "2"]
[White "BillCoe"]
[Black "Oleg_Papayan"]
[Result "0-1"]
[WhiteElo "2062"]
[BlackElo "2390"]
[TimeControl "180+1"]
[EndTime "10:17:41 PDT"]
[Termination "Oleg_Papayan won on time"]

1. e4 {[%clk 0:03:00.9]} 1... e5 {[%clk 0:02:59.5]} 2. Nf3 {[%clk 0:03:00.8]}
2... Nc6 {[%clk 0:02:57.2]} 3. Bb5 {[%clk 0:03:01.2]} 3... f5 {[%clk 0:02:56.8]}
4. d3 {[%clk 0:02:59.7]} 4... fxe4 {[%clk 0:02:55.6]} 5. dxe4 {[%clk 0:03:00.6]}
5... Nf6 {[%clk 0:02:56.4]} 6. Qd3 {[%clk 0:03:00.1]} 6... Bc5 {[%clk
0:02:53.2]} 7. Nc3 {[%clk 0:02:52.6]} 7... d6 {[%clk 0:02:49]} 8. Bg5 {[%clk
0:02:44.8]} 8... h6 {[%clk 0:02:42]} 9. Bh4 {[%clk 0:02:29.1]} 9... O-O {[%clk
0:02:27.1]} 10. O-O-O {[%clk 0:02:22.7]} 10... Qe8 {[%clk 0:02:05.9]} 11. Nd5
{[%clk 0:02:07.3]} 11... Bb6 {[%clk 0:01:33]} 12. Nxf6+ {[%clk 0:01:45.6]} 12...
gxf6 {[%clk 0:01:31.2]} 13. Bg3 {[%clk 0:01:33.5]} 13... Kh7 {[%clk 0:01:24.2]}
14. h3 {[%clk 0:01:33]} 14... Be6 {[%clk 0:01:15.4]} 15. Nh4 {[%clk 0:01:18.2]}
15... Nb4 {[%clk 0:01:12.2]} 16. Bxe8 {[%clk 0:00:57.3]} 16... Nxd3+ {[%clk
0:01:11.3]} 17. cxd3 {[%clk 0:00:44]} 17... Raxe8 {[%clk 0:01:12.2]} 18. b3
{[%clk 0:00:40.8]} 18... a5 {[%clk 0:01:08.4]} 19. Kc2 {[%clk 0:00:40.5]} 19...
a4 {[%clk 0:01:07.5]} 20. f4 {[%clk 0:00:35.9]} 20... Rg8 {[%clk 0:01:04.7]} 21.
f5 {[%clk 0:00:19.5]} 21... axb3+ {[%clk 0:00:56.5]} 22. axb3 {[%clk 0:00:20.4]}
22... Bxb3+ {[%clk 0:00:32]} 23. Kxb3 {[%clk 0:00:21.3]} 23... Rxg3 {[%clk
0:00:32.9]} 24. Rd2 {[%clk 0:00:18.6]} 24... Ra8 {[%clk 0:00:29.8]} 25. Ng6
{[%clk 0:00:15.7]} 25... Be3 {[%clk 0:00:22.8]} 26. Re2 {[%clk 0:00:11]} 26...
Bc5 {[%clk 0:00:23.1]} 27. Rb1 {[%clk 0:00:09.3]} 27... b5 {[%clk 0:00:18.4]}
28. Kc2 {[%clk 0:00:04.2]} 28... Ra2+ {[%clk 0:00:18.1]} 29. Rb2 {[%clk
0:00:04.5]} 29... Rxb2+ {[%clk 0:00:18.2]} 30. Kxb2 {[%clk 0:00:04.5]} 30...
Rxd3 {[%clk 0:00:19.1]} 31. Nf8+ {[%clk 0:00:04.2]} 31... Kg8 {[%clk 0:00:16.7]}
32. Ne6 {[%clk 0:00:04.9]} 32... Bb6 {[%clk 0:00:11.8]} 33. Kc2 {[%clk
0:00:03.6]} 33... Rg3 {[%clk 0:00:09.3]} 34. Nd8 {[%clk 0:00:02.6]} 34... Kf8
{[%clk 0:00:07.7]} 0-1

[Event "*** Titled Tuesday Blitz"]
[Site "Chess.com"]
[Date "2020.04.14"]
[Round "2"]
[White "xberli"]
[Black "flomarechot"]
[Result "1-0"]
[WhiteElo "2443"]
[BlackElo "2184"]
[TimeControl "180+1"]
[EndTime "10:17:42 PDT"]
[Termination "xberli won on time"]

1. e4 {[%clk 0:00:16.8]} 1... c5 {[%clk 0:03:00.9]} 2. Nf3 {[%clk 0:00:17.1]}
2... Nc6 {[%clk 0:02:44.8]} 3. d4 {[%clk 0:00:17.7]} 3... cxd4 {[%clk
0:02:40.4]} 4. Nxd4 {[%clk 0:00:18.6]} 4... Nxd4 {[%clk 0:02:28.3]} 5. Qxd4
{[%clk 0:00:18]} 5... e6 {[%clk 0:02:27.6]} 6. Qd1 {[%clk 0:00:18.2]} 6... a6
{[%clk 0:02:25.4]} 7. Bd3 {[%clk 0:00:18.5]} 7... Bc5 {[%clk 0:02:20.5]} 8. O-O
{[%clk 0:00:19.4]} 8... Ne7 {[%clk 0:02:14.3]} 9. Qe2 {[%clk 0:00:18.8]} 9...
O-O {[%clk 0:02:13.5]} 10. Be3 {[%clk 0:00:19.3]} 10... Qc7 {[%clk 0:02:06.5]}
11. Nd2 {[%clk 0:00:18.9]} 11... b5 {[%clk 0:02:02.7]} 12. a4 {[%clk 0:00:17.6]}
12... b4 {[%clk 0:01:43.4]} 13. Nf3 {[%clk 0:00:15.5]} 13... Bb7 {[%clk
0:01:21.3]} 14. Rac1 {[%clk 0:00:15.2]} 14... f6 {[%clk 0:01:14.2]} 15. c3
{[%clk 0:00:14.8]} 15... b3 {[%clk 0:01:14.6]} 16. Bb1 {[%clk 0:00:13.9]} 16...
Ng6 {[%clk 0:00:58.8]} 17. Rfd1 {[%clk 0:00:14.4]} 17... d6 {[%clk 0:00:50.3]}
18. Nd4 {[%clk 0:00:14.3]} 18... Rfe8 {[%clk 0:00:49.4]} 19. g3 {[%clk
0:00:13.6]} 19... d5 {[%clk 0:00:45.8]} 20. exd5 {[%clk 0:00:12.7]} 20... Bxd5
{[%clk 0:00:46.1]} 21. c4 {[%clk 0:00:12.5]} 21... Bb7 {[%clk 0:00:40.9]} 22. f3
{[%clk 0:00:12.8]} 22... Rad8 {[%clk 0:00:36.1]} 23. Be4 {[%clk 0:00:12.6]}
23... Bxe4 {[%clk 0:00:34]} 24. fxe4 {[%clk 0:00:13.5]} 24... Bxd4 {[%clk
0:00:32.8]} 25. Rxd4 {[%clk 0:00:13.7]} 25... Ne5 {[%clk 0:00:26.2]} 26. Rxd8
{[%clk 0:00:12]} 26... Rxd8 {[%clk 0:00:25.6]} 27. c5 {[%clk 0:00:12.2]} 27...
Qc6 {[%clk 0:00:24.5]} 28. Bf2 {[%clk 0:00:12.3]} 28... Nd3 {[%clk 0:00:22.4]}
29. Rc3 {[%clk 0:00:11.3]} 29... Nxf2 {[%clk 0:00:21.5]} 30. Kxf2 {[%clk
0:00:11.7]} 30... Qxa4 {[%clk 0:00:19.7]} 31. c6 {[%clk 0:00:11.7]} 31... Rc8
{[%clk 0:00:18.4]} 32. c7 {[%clk 0:00:11.2]} 32... Qb5 {[%clk 0:00:17.6]} 33.
Qd2 {[%clk 0:00:10.3]} 33... Qb6+ {[%clk 0:00:17.1]} 34. Kg2 {[%clk 0:00:10.7]}
34... Rxc7 {[%clk 0:00:17.5]} 35. Qd8+ {[%clk 0:00:10.9]} 35... Kf7 {[%clk
0:00:17.1]} 36. Qxc7+ {[%clk 0:00:08.2]} 36... Qxc7 {[%clk 0:00:17]} 37. Rxc7+
{[%clk 0:00:09.1]} 37... Kg6 {[%clk 0:00:17.5]} 38. Ra7 {[%clk 0:00:10]} 38...
f5 {[%clk 0:00:16]} 39. Rxa6 {[%clk 0:00:10.9]} 1-0

[Event "*** Titled Tuesday Blitz"]
[Site "Chess.com"]
[Date "2020.04.14"]
[Round "2"]
[White "AlanZhang"]
[Black "GrafLermontov"]
[Result "1-0"]
[WhiteElo "2164"]
[BlackElo "2408"]
[TimeControl "180+1"]
[EndTime "10:17:42 PDT"]
[Termination "AlanZhang won by checkmate"]

1. e4 {[%clk 0:03:00.9]} 1... c5 {[%clk 0:02:59.5]} 2. Nf3 {[%clk 0:03:00.6]}
2... e6 {[%clk 0:02:59.4]} 3. d4 {[%clk 0:03:01]} 3... cxd4 {[%clk 0:02:59.7]}
4. Nxd4 {[%clk 0:03:01.9]} 4... Nc6 {[%clk 0:03:00.1]} 5. Nb3 {[%clk 0:03:01.3]}
5... Nf6 {[%clk 0:02:57.6]} 6. Bd3 {[%clk 0:03:01.5]} 6... Qc7 {[%clk
0:02:56.4]} 7. Nc3 {[%clk 0:02:58.2]} 7... a6 {[%clk 0:02:55.9]} 8. a4 {[%clk
0:02:52.8]} 8... Be7 {[%clk 0:02:55.3]} 9. O-O {[%clk 0:02:51.1]} 9... O-O
{[%clk 0:02:55.7]} 10. Bd2 {[%clk 0:02:50.8]} 10... d6 {[%clk 0:02:54.5]} 11.
Qe2 {[%clk 0:02:40.4]} 11... Ne5 {[%clk 0:02:53.4]} 12. Kh1 {[%clk 0:02:30.6]}
12... b6 {[%clk 0:02:49.1]} 13. f4 {[%clk 0:02:28.6]} 13... Nxd3 {[%clk
0:02:48]} 14. cxd3 {[%clk 0:02:28]} 14... Bb7 {[%clk 0:02:48.1]} 15. Rac1 {[%clk
0:02:26.6]} 15... Qd8 {[%clk 0:02:43.9]} 16. d4 {[%clk 0:02:23]} 16... d5 {[%clk
0:02:35.8]} 17. e5 {[%clk 0:02:12.8]} 17... Ne4 {[%clk 0:02:35.9]} 18. Nxe4
{[%clk 0:02:11.3]} 18... dxe4 {[%clk 0:02:36.8]} 19. Bc3 {[%clk 0:02:11.2]}
19... e3 {[%clk 0:02:16.2]} 20. Rce1 {[%clk 0:01:30.7]} 20... Qd7 {[%clk
0:01:57.4]} 21. a5 {[%clk 0:01:15.9]} 21... b5 {[%clk 0:01:50.7]} 22. Nc5 {[%clk
0:01:09]} 22... Bxc5 {[%clk 0:01:24.5]} 23. dxc5 {[%clk 0:01:09.9]} 23... Qd5
{[%clk 0:01:23.7]} 24. b4 {[%clk 0:01:08.4]} 24... Rad8 {[%clk 0:01:17.1]} 25.
Rf3 {[%clk 0:00:33.6]} 25... Rd7 {[%clk 0:01:12]} 26. Rxe3 {[%clk 0:00:27.7]}
26... Rfd8 {[%clk 0:01:12.6]} 27. h3 {[%clk 0:00:22.5]} 27... Qb3 {[%clk
0:01:01.1]} 28. Rg3 {[%clk 0:00:21.8]} 28... g6 {[%clk 0:00:59.6]} 29. h4 {[%clk
0:00:19.5]} 29... Rd2 {[%clk 0:00:55.3]} 30. Qf1 {[%clk 0:00:09]} 30... Bxg2+
{[%clk 0:00:37.7]} 31. Rxg2 {[%clk 0:00:09.2]} 31... Qxc3 {[%clk 0:00:37.7]} 32.
Rxd2 {[%clk 0:00:08.1]} 32... Rxd2 {[%clk 0:00:38.6]} 33. Re2 {[%clk 0:00:06]}
33... Rd3 {[%clk 0:00:29.3]} 34. Rg2 {[%clk 0:00:04.5]} 34... Qb3 {[%clk
0:00:20.5]} 35. Kh2 {[%clk 0:00:03.4]} 35... Rh3+ {[%clk 0:00:19.6]} 36. Kg1
{[%clk 0:00:03.6]} 36... Qxb4 {[%clk 0:00:19.6]} 37. c6 {[%clk 0:00:01.9]} 37...
Qc5+ {[%clk 0:00:18.8]} 38. Rf2 {[%clk 0:00:02.1]} 38... Qxc6 {[%clk 0:00:18.5]}
39. Qxh3 {[%clk 0:00:01.6]} 39... Qc1+ {[%clk 0:00:19.3]} 40. Kg2 {[%clk
0:00:01.7]} 40... Qe3 {[%clk 0:00:20.2]} 41. Qxe3 {[%clk 0:00:01.8]} 41... Kg7
{[%clk 0:00:20.5]} 42. Qa7 {[%clk 0:00:02.2]} 42... h5 {[%clk 0:00:21.4]} 43.
Qxa6 {[%clk 0:00:02.6]} 43... Kh6 {[%clk 0:00:22.3]} 44. Qxb5 {[%clk 0:00:03]}
44... g5 {[%clk 0:00:23.2]} 45. a6 {[%clk 0:00:03.8]} 45... Kg6 {[%clk
0:00:24.1]} 46. a7 {[%clk 0:00:04.2]} 46... Kf5 {[%clk 0:00:25]} 47. a8=Q {[%clk
0:00:04.9]} 47... Kg4 {[%clk 0:00:25.9]} 48. Qf3+ {[%clk 0:00:04.8]} 48... Kf5
{[%clk 0:00:26.2]} 49. Qbd3# {[%clk 0:00:04.9]} 1-0